bitfinex/quotes_ETHUSD_20260129
["timestamp","ask_amount","ask_price","bid_price","bid_amount"]
[1769700939040,0.1024,2836.6,2834.6,0.88193839]
[1769700939733,0.738,2836.5,2834.6,0.88193839]
[1769700940440,0.88136788,2836.5,2834.5,3.52783461]
[1769700940657,0.86961272,2836.4,2834.4,2.09027997]
[1769700940809,0.86961272,2836.4,2834.5,0.29723124]
[1769700941231,0.2335703,2836.1,2834.5,0.29723124]
[1769700941734,0.02821272,2836.0,2834.5,0.29723124]
[1769700941938,0.13061272,2836.0,2833.8,0.88218625]
[1769700942136,0.13061272,2836.0,2833.9,0.88217083]
[1769700942342,0.13061272,2836.0,2833.7,3.52893811]
[1769700942510,0.1024,2835.8,2833.8,0.35289381]
[1769700942706,0.88155435,2835.9,2833.5,0.02821272]
[1769700942946,0.88155435,2835.9,2833.3,0.88236332]
[1769700942947,13.85280571,2835.9,2833.3,0.88236332]
[1769700943259,0.02821272,2835.8,2833.3,0.91411383]
[1769700943543,0.739,2835.7,2833.3,0.88236332]
[1769700943744,0.02821272,2835.8,2833.3,0.91411383]
[1769700943915,0.739,2835.6,2833.4,1.75597837]
[1769700944742,0.2335703,2835.1,2833.4,1.75597837]
[1769700944941,0.1024,2835.0,2833.3,0.002]
[1769700945437,0.03175051,2834.9,2833.3,0.002]
[1769700945947,0.1024,2834.7,2833.3,0.002]
[1769700946153,0.2335703,2834.4,2833.0,0.002]
[1769700946359,0.2335703,2834.2,2832.8,0.002]
[1769700946938,1.01626476,2834.1,2831.8,0.88282558]
[1769700947143,0.1024,2833.9,2831.7,3.5314468]
[1769700947350,0.1024,2833.9,2831.6,0.002]
[1769700947519,0.1024,2833.9,2831.9,0.88279301]
[1769700947722,0.739,2833.8,2831.9,14.03076007]
[1769700948244,0.88211425,2834.1,2831.9,14.03076007]
[1769700948542,0.739,2834.0,2832.1,13.15151669]
[1769700948746,0.739,2834.0,2832.1,13.11621655]
[1769700949045,0.8821765,2833.9,2832.2,0.88270602]
[1769700949417,0.739,2833.8,2832.2,0.88270602]
[1769700949618,0.8821765,2833.9,2832.3,0.03530014]
[1769700949831,0.739,2833.8,2832.4,1.40342227]
[1769700950031,0.739,2833.7,2832.4,1.40342227]
[1769700950439,0.739,2833.7,2832.1,0.88273321]
[1769700951013,0.739,2833.6,2832.1,0.88273321]
[1769700951215,0.88230104,2833.5,2831.7,0.88284447]
[1769700951521,0.88230104,2833.5,2831.7,0.88285954]
[1769700951848,0.88230104,2833.5,2831.7,0.88285335]
[1769700952034,0.51505052,2833.4,2831.8,0.44164082]
[1769700952234,0.739,2833.3,2831.8,0.44164082]
[1769700952915,0.88230104,2833.5,2831.8,0.44164082]
[1769700953221,0.739,2833.4,2831.9,0.88279953]
[1769700953424,0.739,2833.3,2831.9,0.88279953]
[1769700953622,0.739,2833.3,2831.8,3.97283895]
[1769700953623,0.739,2833.3,2832.0,0.48556385]
[1769700953846,0.88223876,2833.7,2831.8,14.44066825]
[1769700954047,0.739,2833.6,2831.8,14.44066825]
[1769700954251,0.88223876,2833.7,2831.9,13.15151669]
[1769700954452,0.739,2833.6,2831.9,13.15151669]
[1769700954638,0.88208312,2834.2,2832.4,13.11621655]
[1769700954837,0.88208312,2834.2,2832.5,1.31515167]
[1769700954838,0.739,2834.1,2832.5,1.31515167]
[1769700955025,0.88208312,2834.2,2832.5,1.31515167]
[1769700955233,0.739,2834.1,2832.6,0.88258137]
[1769700955552,0.98426532,2834.9,2832.6,0.88258137]
[1769700955757,0.1024,2834.8,2832.6,13.82658218]
[1769700955967,5.02210267,2834.8,2832.7,1.86720593]
[1769700956121,0.03530014,2834.6,2832.7,1.86720593]
[1769700956455,0.13770014,2834.2,2832.2,0.88269756]
[1769700956640,0.001,2833.9,2832.3,0.88267423]
[1769700956848,0.739,2833.8,2832.5,0.88259406]
[1769700957148,0.739,2833.8,2832.1,3.53093423]
[1769700957149,0.88223876,2833.7,2832.1,3.53093423]
[1769700957366,0.739,2833.6,2832.1,3.53093423]
[1769700957520,4.465,2833.6,2832.2,1.73576722]
[1769700957716,4.465,2833.6,2831.9,0.002]
[1769700958054,4.465,2833.5,2831.9,0.002]
[1769700958452,0.88223876,2833.7,2831.9,0.002]
[1769700958453,0.739,2833.4,2831.9,0.002]
[1769700958617,4.60823876,2833.7,2831.9,0.002]
[1769700958618,4.60823876,2833.7,2832.0,0.8827568]
[1769700958823,0.739,2833.6,2832.0,0.8827568]
[1769700959027,1.2575494,2833.6,2832.1,0.441595]
[1769700959435,0.88230104,2833.5,2832.1,1.32431733]
[1769700959657,0.739,2833.4,2832.1,1.32431733]
[1769700959832,0.88230104,2833.5,2832.1,1.32432702]
[1769700960037,0.739,2833.3,2832.1,1.32432702]
[1769700960233,0.739,2833.3,2832.1,0.441595]
[1769700960458,0.739,2833.2,2832.1,0.88272769]
[1769700960828,0.739,2833.2,2831.9,0.002]
[1769700961187,0.88230104,2833.5,2832.1,0.8827299]
[1769700961394,0.739,2833.4,2831.9,12.94600081]
[1769700961533,0.001,2833.9,2832.3,12.94400081]
[1769700961725,0.88318038,2833.9,2832.5,12.94400081]
[1769700962126,0.88318038,2833.9,2832.4,1.2979301]
[1769700962436,0.88318038,2833.9,2832.0,12.94400081]
[1769700962836,0.739,2833.8,2832.0,12.94400081]
[1769700963561,0.739,2833.7,2832.1,0.88273719]
[1769700963863,0.739,2833.7,2832.0,12.94400081]
[1769700964038,0.739,2833.7,2831.9,0.88478033]
[1769700964238,0.739,2833.7,2832.0,0.88276671]
[1769700964428,0.739,2833.7,2831.9,0.88477902]
[1769700964635,0.739,2833.6,2832.0,0.88276184]
[1769700964831,0.001,2833.9,2832.1,0.44158353]
[1769700965049,0.739,2833.8,2832.1,0.44158353]
[1769700965362,4.465,2833.8,2832.1,0.44158353]
[1769700965563,0.88223876,2833.7,2832.1,0.44158353]
[1769700965751,0.739,2833.6,2832.1,0.44158353]
[1769700965936,0.88223876,2833.7,2832.1,14.26831018]
[1769700966132,0.739,2833.6,2832.1,0.44158353]
[1769700966429,0.739,2833.6,2832.1,1.32431428]
[1769700966963,0.739,2833.6,2832.1,0.44158353]
[1769700967152,0.739,2833.6,2831.9,0.8847768]
[1769700967468,3.726,2833.5,2831.9,0.002]
[1769700967765,4.60833218,2833.4,2831.9,0.002]
[1769700968132,0.1024,2833.2,2831.9,0.002]
[1769700968674,4.465,2833.1,2831.9,0.002]
[1769700968930,0.45674,2833.0,2831.9,0.002]
[1769700969471,0.739,2832.9,2831.9,0.002]
[1769700969775,1.62151906,2832.8,2831.9,0.002]
[1769700969996,1.62151906,2832.8,2831.6,0.002]
[1769700969997,5.34751906,2832.8,2831.6,0.002]
[1769700970136,3.726,2832.6,2831.4,0.002]
[1769700970438,0.739,2832.5,2831.4,0.002]
[1769700970639,0.739,2832.4,2831.4,0.002]
[1769700971835,0.88267485,2832.3,2831.4,0.002]
[1769700972234,0.88267485,2832.3,2831.1,0.002]
[1769700972235,1.75098222,2832.3,2831.1,0.002]
[1769700972434,0.1024,2832.2,2830.8,0.002]
[1769700972648,0.03530014,2832.0,2830.8,0.002]
[1769700972867,0.03530014,2832.0,2830.2,0.002]
[1769700973172,0.74,2831.9,2830.2,0.002]
[1769700973472,0.03530014,2832.0,2830.2,0.002]
[1769700973473,0.74,2831.8,2830.5,2.30150797]
[1769700973649,0.03530014,2832.0,2830.5,2.30150797]
[1769700973845,0.74,2831.7,2830.5,2.30150797]
[1769700974870,0.74,2831.7,2830.5,2.09227997]
[1769700975366,0.74,2831.6,2830.5,2.09227997]
[1769700975739,0.74,2831.5,2830.5,2.09227997]
[1769700975979,3.53119813,2832.0,2830.5,2.09227997]
[1769700976345,3.53119813,2832.1,2830.5,2.97549353]
[1769700976541,0.74,2832.0,2830.6,1.94524658]
[1769700976942,0.74,2832.0,2830.5,2.09227997]
[1769700977471,3.53119813,2832.1,2830.5,2.09227997]
[1769700977472,0.74,2831.9,2830.5,2.09227997]
[1769700977643,0.74,2831.8,2830.5,2.09227997]
[1769700977844,0.88286188,2831.7,2830.5,2.09227997]
[1769700978062,0.51543094,2831.6,2830.5,1e-08]
[1769700979374,0.74,2831.5,2830.5,1e-08]
[1769700979571,0.88286188,2831.7,2830.5,1e-08]
[1769700979747,0.74,2831.6,2830.5,1e-08]
[1769700979947,0.88292424,2831.5,2830.5,1e-08]
[1769700980165,0.88292424,2831.5,2830.7,0.002]
[1769700980352,0.74,2831.4,2830.7,0.002]
[1769700980778,3.5309852,2832.1,2830.7,0.002]
[1769700980949,3.5309852,2832.1,2830.7,1.29660008]
[1769700980950,0.74,2832.0,2830.7,1.29660008]
[1769700981740,0.74,2832.0,2830.7,0.002]
[1769700981967,0.91809967,2831.9,2830.7,0.002]
[1769700982248,0.1024,2831.8,2830.5,1e-08]
[1769700983151,0.74,2831.7,2830.5,1e-08]
[1769700983979,0.88289306,2831.6,2830.5,1e-08]
[1769700984172,0.51544653,2831.5,2830.5,1e-08]
[1769700985476,0.03530014,2831.3,2830.2,0.002]
[1769700986059,4.6090178,2831.2,2830.2,0.002]
[1769700986982,3.726,2830.8,2829.6,0.002]
[1769700987285,4.466,2830.7,2829.6,0.002]
[1769700987584,0.1024,2830.6,2829.6,0.002]
[1769700987953,3.8284,2830.6,2829.6,0.002]
[1769700988279,1.62323617,2830.5,2829.6,0.002]
[1769700988472,0.89845809,2830.4,2829.6,0.002]
[1769700988849,0.89845809,2830.4,2829.2,0.002]
[1769700988850,3.8284,2830.3,2829.2,0.002]
[1769700989063,3.726,2830.1,2828.1,13.98796985]
[1769700989283,3.726,2829.9,2828.3,0.88390628]
[1769700989468,0.67246388,2830.0,2828.2,3.53580625]
[1769700989469,3.726,2829.7,2828.4,0.88388945]
[1769700989651,0.74,2829.8,2828.4,0.88388945]
[1769700989985,0.74,2829.8,2827.6,13.98996985]
[1769700990195,0.74,2829.8,2827.6,14.87410137]
[1769700990196,0.1024,2829.6,2827.6,14.87410137]
[1769700990504,0.1024,2829.4,2827.6,0.002]
[1769700990799,0.1024,2829.2,2827.6,0.002]
[1769700990953,0.41814014,2829.3,2827.6,0.002]
[1769700990954,0.1024,2829.0,2827.6,0.002]
[1769700991353,0.13770014,2829.0,2827.6,0.002]
[1769700991556,0.13770014,2829.0,2827.4,0.002]
[1769700991557,0.1024,2828.6,2827.4,0.002]
[1769700991873,0.03530014,2828.5,2827.4,0.002]
[1769700992067,0.1024,2828.2,2827.4,0.002]
[1769700992473,0.1024,2828.2,2826.8,0.002]
[1769700992779,13.65785983,2828.1,2826.2,0.002]
[1769700993169,0.8839232,2828.3,2826.2,13.2716314]
[1769700993368,0.8839232,2828.3,2826.4,13.30493154]
[1769700993569,0.74,2828.2,2826.4,13.30493154]
[1769700993769,0.13770014,2828.1,2826.3,1.41562159]
[1769700993975,0.13770014,2828.1,2826.2,0.002]
[1769700994177,0.88401697,2828.0,2826.2,0.002]
[1769700994480,0.1024,2827.9,2826.2,0.002]
[1769700994680,13.76025983,2827.9,2826.2,0.002]
[1769700995084,0.1024,2827.7,2826.2,0.002]
[1769700995285,0.74,2827.6,2826.2,0.002]
[1769700995492,0.74,2827.5,2826.2,0.002]
[1769700996050,0.88401697,2828.0,2826.2,0.002]
[1769700996255,0.74,2827.9,2826.2,13.2716314]
[1769700996493,0.74,2827.8,2826.2,13.2716314]
[1769700996893,0.74,2827.8,2826.2,0.002]
[1769700997498,0.03530014,2826.6,2825.5,0.00052428]
[1769700997665,13.62455969,2826.2,2823.4,0.03530014]
[1769700997861,0.03530014,2826.0,2823.5,3.54167316]
[1769700998062,0.8846426,2826.0,2823.9,3.54110422]
[1769700998294,0.35031102,2825.9,2824.2,13.30493154]
[1769700998593,1.05730154,2826.4,2824.9,0.03530014]
[1769700998792,0.741,2826.0,2824.6,13.2696314]
[1769700998993,1.94182623,2826.4,2824.0,13.62727184]
[1769700999193,1.97712637,2826.4,2824.2,13.2696314]
[1769700999369,0.5515196,2826.3,2824.3,16.04659454]
[1769700999569,0.741,2826.2,2824.3,16.04659454]
[1769700999980,0.58681974,2826.3,2824.3,16.04659454]
[1769701000203,0.8846426,2826.0,2824.4,0.88514374]
[1769701000591,0.03530014,2825.9,2824.3,16.04659454]
[1769701000799,0.03530014,2825.7,2824.4,1.69317796]
[1769701001016,0.741,2825.6,2824.3,0.88516812]
[1769701001325,0.741,2825.6,2824.3,0.88516835]
[1769701001469,0.03530014,2825.7,2824.3,0.88516716]
[1769701001798,0.88457033,2826.3,2824.4,13.2696314]
[1769701001986,0.741,2826.2,2824.4,13.2696314]
[1769701002173,0.8846113,2826.1,2824.6,0.88508107]
[1769701002374,0.8845487,2826.3,2824.6,14.15471247]
[1769701002579,0.741,2826.2,2824.6,14.15471247]
[1769701003063,1.94184251,2826.4,2824.6,14.15471247]
[1769701003265,1.05730154,2826.4,2824.8,13.2696314]
[1769701003499,1.05730154,2826.4,2824.7,0.03530014]
[1769701003500,0.03530014,2827.3,2825.1,13.2696314]
[1769701003704,0.88426711,2827.2,2825.3,13.2696314]
[1769701003906,0.91956725,2827.2,2825.3,13.2696314]
[1769701004090,0.03530014,2827.0,2825.3,13.2696314]
[1769701004272,0.88436096,2826.9,2825.4,0.88483046]
[1769701004594,0.03530014,2826.4,2825.0,0.88495222]
[1769701004793,0.741,2826.3,2825.0,0.88495222]
[1769701005101,0.741,2826.3,2824.9,1.33049315]
[1769701005301,0.741,2826.3,2825.0,0.88495301]
[1769701005602,0.03530014,2825.8,2824.9,1.33049315]
[1769701005768,0.03530014,2825.8,2824.5,0.88509969]
[1769701005965,0.1024,2826.2,2824.0,13.2696314]
[1769701006270,0.8846426,2826.0,2824.5,0.88509588]
[1769701006680,0.03530014,2826.1,2824.5,0.88509588]
[1769701006979,0.03530014,2826.4,2824.5,0.88509588]
[1769701006980,0.741,2826.2,2824.5,0.88509588]
[1769701007196,0.77630014,2826.2,2824.6,0.50713475]
[1769701007499,0.77630014,2826.2,2824.4,1.53082249]
[1769701007673,0.8845487,2826.3,2824.4,1.53082249]
[1769701007674,1.6255487,2826.3,2824.4,14.80045389]
[1769701008086,0.8845487,2826.3,2824.4,14.80045389]
[1769701008283,3.57315866,2826.6,2824.6,13.2696314]
[1769701008284,0.88445482,2826.6,2824.6,13.2696314]
[1769701008484,0.88445482,2826.6,2824.5,0.03530014]
[1769701008485,0.88429839,2827.1,2825.0,13.2696314]
[1769701008687,0.88414202,2827.6,2825.4,13.2696314]
[1769701008987,0.88414202,2827.6,2825.3,0.03530014]
[1769701008988,0.88414202,2827.6,2825.6,13.2696314]
[1769701009303,4.27856811,2827.8,2825.3,0.03530014]
[1769701009304,0.001,2827.8,2826.3,13.2696314]
[1769701009623,0.88507976,2827.8,2826.4,14.59659454]
[1769701010170,0.88508585,2827.8,2826.4,14.59659454]
[1769701010384,0.88508585,2827.8,2826.5,0.88448611]
[1769701010385,0.001,2827.8,2826.5,0.88448611]
[1769701010597,0.001,2827.8,2826.4,14.59659454]
[1769701010827,0.001,2827.8,2826.4,2.21147217]
[1769701011103,0.03530014,2828.1,2826.5,0.57496578]
[1769701011698,0.03530014,2827.8,2826.5,0.57496578]
[1769701012203,0.03530014,2828.1,2826.5,0.57496578]
[1769701012501,0.03530014,2827.6,2825.4,14.98469007]
[1769701012677,0.03530014,2827.6,2826.2,0.88457991]
[1769701012880,0.741,2827.7,2825.9,14.0106314]
[1769701013092,0.77630014,2827.7,2825.9,14.0106314]
[1769701013416,0.03530014,2827.5,2826.2,0.88457436]
[1769701014001,0.03530014,2827.5,2826.1,0.88458837]
[1769701014204,0.741,2827.4,2825.8,0.88467995]
[1769701014382,0.91953598,2827.3,2825.6,0.88476783]
[1769701014701,0.03530014,2827.1,2825.7,1.76934706]
[1769701015278,0.88423584,2827.3,2825.7,1.76934706]
[1769701015881,0.03530014,2827.2,2825.7,1.76934706]
[1769701016301,0.741,2827.2,2825.8,0.88470521]
[1769701016600,0.741,2827.2,2825.9,0.61928731]
[1769701017121,0.741,2827.7,2825.9,13.81452586]
[1769701017422,0.03530014,2827.6,2825.9,13.81452586]
[1769701017735,0.741,2827.5,2825.9,13.81652586]
[1769701017916,0.741,2827.5,2825.9,0.62128731]
[1769701018222,0.03530014,2827.2,2825.9,0.62128731]
[1769701018518,0.88429839,2827.1,2825.9,0.88667383]
[1769701018722,0.88429839,2827.1,2825.9,0.002]
[1769701019109,1.62529839,2827.1,2825.9,0.002]
[1769701020294,0.88407949,2827.8,2825.9,0.002]
[1769701020494,0.03530014,2827.0,2825.9,0.002]
[1769701020705,0.03530014,2827.2,2825.9,0.002]
[1769701021096,0.741,2827.3,2825.9,0.002]
[1769701021295,3.51559389,2827.7,2825.9,0.002]
[1769701021642,0.04953035,2827.4,2825.9,13.19723855]
[1769701021936,0.04953035,2827.4,2826.0,1.31972385]
[1769701022426,0.04953035,2827.4,2825.6,0.002]
[1769701022427,0.88439224,2826.8,2825.6,0.002]
[1769701022649,1.62539224,2826.8,2825.6,0.002]
[1769701023328,0.88439224,2826.8,2825.6,0.002]
[1769701023537,0.1024,2827.4,2825.6,0.002]
[1769701023759,3.63881662,2827.8,2825.8,13.19523855]
[1769701024047,0.04953035,2827.6,2825.6,0.26218582]
[1769701024204,0.04953035,2827.2,2825.6,0.26218582]
[1769701024405,0.88429839,2827.1,2825.6,1.14695128]
[1769701024599,1.62529839,2827.1,2825.6,0.26218582]
[1769701024805,2.50021998,2827.1,2825.6,0.26218582]
[1769701025231,0.04953035,2826.6,2825.6,0.26218582]
[1769701025456,0.04953035,2826.8,2825.6,0.002]
[1769701025603,1.75921998,2827.1,2825.6,0.88674577]
[1769701025940,0.741,2827.0,2825.6,0.002]
[1769701026327,0.88436096,2826.9,2825.6,0.002]
[1769701026539,1.62536096,2826.9,2825.6,0.002]
[1769701026917,1.62536096,2826.9,2825.6,0.26218657]
[1769701027455,0.741,2826.8,2825.6,0.26218657]
[1769701027852,0.88436096,2826.9,2825.6,0.26218657]
[1769701028076,3.53706847,2827.3,2825.6,13.45742512]
[1769701028352,17.03894959,2828.0,2825.6,13.45742512]
[1769701028353,0.88401697,2828.0,2826.2,13.19523855]
[1769701028561,0.741,2827.9,2826.3,1.40798499]
[1769701029055,0.06014931,2827.8,2826.3,1.40798499]
[1769701029227,0.06014931,2827.8,2826.0,0.88462749]
[1769701029946,0.88401697,2828.0,2826.0,14.07986604]
[1769701030147,0.741,2827.8,2826.2,13.19523855]
[1769701030353,0.1024,2828.4,2826.1,0.06014931]
[1769701030354,3.57031689,2828.9,2826.5,13.19523855]
[1769701030553,0.06014931,2828.3,2826.6,1.31952385]
[1769701030757,0.06014931,2827.7,2826.6,1.31952385]
[1769701031047,0.06014931,2827.7,2825.9,16.73384698]
[1769701031359,0.06014931,2827.7,2825.9,13.19523855]
[1769701031654,0.06014931,2828.1,2826.5,0.88448605]
[1769701031814,1.29719349,2828.8,2826.5,14.0797246]
[1769701032015,0.16254931,2828.7,2826.6,14.95701732]
[1769701032235,0.06014931,2828.7,2826.6,14.95701732]
[1769701032433,0.88376696,2828.8,2826.8,13.19523855]
[1769701032659,0.88376696,2828.8,2827.0,13.19523855]
[1769701033717,0.88357955,2829.4,2827.2,13.19523855]
[1769701033918,0.06014931,2829.2,2827.3,14.52077734]
[1769701034174,0.06014931,2828.3,2827.3,1.32553879]
[1769701034454,0.06014931,2828.3,2826.7,13.19523855]
[1769701034455,0.06014931,2828.1,2826.7,13.19523855]
[1769701034649,0.88395445,2828.2,2826.7,14.07965819]
[1769701035151,0.06014931,2828.1,2826.6,1.76177877]
[1769701035350,0.06014931,2828.1,2826.4,0.741]
[1769701035558,0.06014931,2827.9,2826.1,16.73366433]
[1769701035853,0.06014931,2827.7,2826.1,13.19523855]
[1769701036018,0.06014931,2827.7,2826.1,14.07983136]
[1769701036222,0.06014931,2827.7,2826.1,13.19523855]
[1769701036422,0.88420456,2827.4,2826.2,1.40798734]
[1769701036726,0.88420456,2827.4,2825.8,0.88668826]
[1769701036727,0.88420456,2827.4,2825.8,0.002]
[1769701036952,0.88420456,2827.4,2825.9,3.53869252]
[1769701037257,0.88420456,2827.4,2826.0,0.8846391]
[1769701037461,0.88420456,2827.4,2825.8,0.002]
[1769701037462,0.06014931,2827.2,2825.8,0.002]
[1769701037831,0.44811721,2827.3,2825.8,0.002]
[1769701038030,1.62520456,2827.4,2826.2,0.88457306]
[1769701038235,0.88420456,2827.4,2826.2,0.88456608]
[1769701038431,3.53681827,2827.6,2825.9,0.8846739]
[1769701038639,0.741,2827.7,2826.0,14.60342979]
[1769701039262,0.88407949,2827.8,2826.0,14.60342979]
[1769701039462,0.88407949,2827.8,2826.2,13.19523855]
[1769701039617,0.88407949,2827.8,2826.3,0.741]
[1769701040518,0.06014931,2827.6,2826.0,1.40819124]
[1769701040745,0.06014931,2827.2,2825.8,0.002]
[1769701040954,0.741,2827.1,2825.8,0.002]
[1769701042051,0.06014931,2827.0,2825.8,0.002]
[1769701042251,0.06014931,2827.0,2825.6,1e-08]
[1769701042428,0.741,2827.1,2825.6,1e-08]
[1769701042429,0.88429839,2827.1,2825.6,1e-08]
[1769701043334,0.88414202,2827.6,2825.6,1e-08]
[1769701043645,0.88414202,2827.6,2825.8,13.19523855]
[1769701044035,0.88414202,2827.6,2825.9,13.99638786]
[1769701044237,0.88414202,2827.6,2825.9,13.93623855]
[1769701044528,3.53656811,2828.0,2826.0,0.8846426]
[1769701044723,3.53656811,2828.0,2826.1,1.83594516]
[1769701045958,3.53656811,2828.0,2826.1,15.41343363]
[1769701046172,0.88376696,2828.8,2826.6,13.63763778]
[1769701046351,0.88376696,2828.8,2827.1,13.57748847]
[1769701046536,3.53506787,2828.9,2827.1,13.57748847]
[1769701046537,3.53506787,2828.9,2827.2,2.24801148]
[1769701046864,3.53506787,2828.9,2827.2,1.36376378]
[1769701047029,3.59521718,2828.9,2827.2,0.88425979]
[1769701047371,0.06014931,2828.7,2827.1,0.88428726]
[1769701047552,0.06014931,2828.7,2826.7,0.741]
[1769701047736,0.06014931,2828.7,2827.1,0.88428181]
[1769701048060,0.741,2828.6,2827.2,0.8842494]
[1769701048360,0.741,2828.8,2827.2,0.88426242]
[1769701048662,0.88379821,2828.7,2827.3,0.44213309]
[1769701048959,0.88379821,2828.7,2826.7,14.31848847]
[1769701048960,0.94394752,2828.7,2826.7,14.31848847]
[1769701049174,0.94394752,2828.7,2827.3,0.88423401]
[1769701049175,0.88379821,2828.7,2827.3,0.88423401]
[1769701049336,1.62479821,2828.7,2827.3,0.88423401]
[1769701049529,1.62479821,2828.7,2826.9,13.57748847]
[1769701049862,0.06014931,2828.6,2826.7,0.741]
[1769701050026,0.06014931,2828.4,2826.4,17.11550866]
[1769701050226,0.06014931,2828.6,2827.0,0.88432846]
[1769701050227,0.16254931,2828.6,2827.0,0.88432846]
[1769701050528,0.16254931,2828.6,2826.7,13.57748847]
[1769701050529,0.8838607,2828.5,2826.7,13.57748847]
[1769701050756,1.6248607,2828.5,2826.7,13.57748847]
[1769701050960,0.8838607,2828.5,2826.7,13.57748847]
[1769701051141,0.8838607,2828.5,2826.9,13.63763778]
[1769701051345,0.8838607,2828.5,2827.0,1.36376378]
[1769701051540,3.53478477,2829.1,2827.0,14.94125225]
[1769701051767,0.80114931,2829.0,2827.0,14.94125225]
[1769701051976,0.06014931,2828.8,2827.0,14.94125225]
[1769701052133,0.06014931,2828.6,2827.0,1.36376378]
[1769701052332,1.3413203,2828.6,2826.6,14.31848847]
[1769701052651,0.88370448,2829.0,2827.3,0.88423584]
[1769701052848,0.88370448,2829.0,2827.3,14.51323257]
[1769701053155,0.06014931,2828.9,2827.3,0.88423584]
[1769701053340,0.06014931,2828.7,2827.2,0.8842642]
[1769701053541,0.06014931,2828.9,2827.2,0.8842642]
[1769701053743,0.88370448,2829.0,2827.3,14.01098069]
[1769701054166,0.88362921,2829.3,2827.5,13.56884742]
[1769701054460,0.06014931,2829.0,2827.5,13.56884742]
[1769701054633,0.741,2829.1,2827.6,0.88414202]
[1769701054831,0.741,2829.1,2827.5,0.88415594]
[1769701055032,0.06014931,2829.2,2827.6,0.44209551]
[1769701055272,0.741,2829.1,2827.5,0.88415825]
[1769701055468,0.741,2829.0,2827.5,0.88415825]
[1769701056046,0.741,2829.0,2827.5,0.8841661]
[1769701056242,13.61670409,2829.1,2827.0,13.56884742]
[1769701056453,0.06014931,2828.9,2827.0,0.88430456]
[1769701056660,0.88376696,2828.8,2826.9,17.10628392]
[1769701056835,2.08290537,2828.8,2827.0,1.87316449]
[1769701057531,0.741,2828.7,2827.0,1.87316449]
[1769701057864,1.34190537,2828.8,2826.8,0.8843819]
[1769701057865,0.90354931,2828.6,2826.8,0.8843819]
[1769701058064,0.741,2828.6,2826.8,14.45322932]
[1769701058265,0.1034,2828.7,2826.8,14.45322932]
[1769701058567,0.741,2828.6,2826.8,14.45322932]
[1769701058750,0.1034,2828.7,2826.8,14.45322932]
[1769701058951,0.741,2828.6,2826.9,15.36792986]
[1769701059154,0.001,2828.7,2827.2,13.56884742]
[1769701059464,0.001,2828.7,2826.9,2.54008244]
[1769701059663,0.001,2828.7,2826.9,1.79908244]
[1769701060037,0.741,2828.6,2826.9,1.79908244]
[1769701060236,0.001,2828.7,2827.0,13.83719419]
[1769701060969,0.16354931,2828.7,2827.0,0.26834677]
[1769701061261,0.06014931,2828.5,2827.0,0.26834677]
[1769701061564,13.61670409,2828.5,2826.5,13.56884742]
[1769701061763,0.06014931,2828.3,2826.5,0.8844653]
[1769701061963,0.06014931,2828.3,2826.7,0.88441818]
[1769701062172,13.61670409,2828.5,2826.7,0.88440579]
[1769701062173,0.741,2828.2,2826.7,0.88440579]
[1769701062348,0.741,2828.2,2826.2,14.30984742]
[1769701062349,0.741,2828.2,2826.8,0.88439174]
[1769701062669,0.741,2828.2,2826.6,3.53780135]
[1769701062670,0.741,2828.5,2827.0,0.88432554]
[1769701062843,0.741,2828.5,2827.1,0.4421673]
[1769701062844,0.88389195,2828.4,2827.1,0.4421673]
[1769701063047,0.88389195,2828.4,2826.9,0.88435053]
[1769701063349,0.88389195,2828.4,2826.4,13.56884742]
[1769701063557,0.88389195,2828.4,2826.7,0.88439755]
[1769701064370,0.741,2828.3,2826.8,0.88438496]
[1769701064568,0.88389195,2828.4,2826.8,0.88437707]
[1769701064775,0.88398571,2828.1,2826.6,0.88445482]
[1769701065342,14.44054049,2828.1,2826.3,0.741]
[1769701065544,13.65895478,2828.0,2825.9,0.88465637]
[1769701065744,13.55655478,2827.8,2825.8,0.88469625]
[1769701065945,0.06014931,2827.5,2825.9,0.44236022]
[1769701066249,0.741,2827.4,2825.5,14.31184742]
[1769701066453,0.741,2827.3,2826.2,0.88455617]
[1769701066652,0.741,2827.3,2826.1,0.88459004]
[1769701066880,0.741,2827.3,2825.9,0.8846739]
[1769701066881,0.88426711,2827.2,2825.9,0.8846739]
[1769701069487,3.53640044,2827.8,2825.9,14.51367063]
[1769701069696,3.53640044,2827.8,2826.1,13.62899673]
[1769701069856,3.53640044,2827.8,2826.1,13.56884742]
[1769701070062,3.53640044,2827.8,2826.0,1.80524056]
[1769701070263,3.53640044,2827.8,2825.9,0.8846739]
[1769701070264,17.09295522,2827.8,2825.9,0.8846739]
[1769701070470,0.1024,2827.7,2825.9,0.8846739]
[1769701070983,3.53640044,2827.8,2825.9,14.51367063]
[1769701071285,3.5358802,2828.2,2826.4,13.56884742]
[1769701071578,0.741,2828.1,2826.6,13.56884742]
[1769701071801,0.741,2828.1,2826.7,1.35688474]
[1769701072451,0.741,2828.1,2826.2,0.741]
[1769701073054,14.50072106,2828.0,2826.2,0.88456076]
[1769701073247,14.50072106,2828.0,2825.8,0.741]
[1769701073452,14.50072106,2828.0,2826.2,0.88455476]
[1769701073862,14.50072106,2828.0,2826.2,0.88456489]
[1769701074049,2.2506789,2827.9,2826.2,0.88456489]
[1769701074469,15.80723368,2827.9,2826.1,0.88458445]
[1769701074666,0.1024,2827.5,2826.0,0.88463521]
[1769701074875,2.3530789,2827.9,2826.2,0.88457162]
[1769701075062,0.88411076,2827.7,2825.9,17.10751794]
[1769701075584,0.88411076,2827.7,2825.9,13.56884742]
[1769701076563,0.741,2827.6,2825.9,13.56884742]
[1769701076751,0.741,2827.5,2825.9,13.56884742]
[1769701076951,0.741,2827.5,2826.0,14.97833955]
[1769701077558,0.88411076,2827.7,2826.1,0.8846113]
[1769701077762,0.741,2827.6,2826.1,0.8846113]
[1769701078562,0.1024,2827.6,2826.1,0.8846113]
[1769701078864,0.741,2827.5,2826.1,0.8846113]
[1769701079083,0.741,2827.5,2826.2,0.58684118]
[1769701079658,0.88420456,2827.4,2826.3,0.8845487]
[1769701080171,0.88420456,2827.4,2826.2,0.58684118]
[1769701080378,0.88420456,2827.4,2826.0,2.32997645]